bitfinex-derivatives/quotes_BNBF0:USTF0_20250529
["timestamp","ask_amount","ask_price","bid_price","bid_amount"]
[1748517316199,0.29198359,684.97,683.89,0.46384169]
[1748517316400,1.01487011,684.96,683.9,1.03461612]
[1748517316600,1.01487011,684.95,683.91,1.03461612]
[1748517316794,1.01487346,684.94,683.92,0.57077413]
[1748517316997,1.01487292,684.93,683.93,0.57077413]
[1748517317198,1.0149541,684.92,683.94,0.57078421]
[1748517317395,1.0149541,684.91,683.95,0.57078421]
[1748517317598,1.01493668,684.9,683.96,0.57077304]
[1748517317794,0.29198359,684.97,683.97,0.57077315]
[1748517317795,1.01493637,684.89,683.97,0.57077315]
[1748517317995,1.01493637,684.88,683.98,0.57077315]
[1748517318301,1.01493637,684.87,683.99,0.57077637]
[1748517318501,1.0149106,684.86,684.0,0.57077637]
[1748517318699,1.0149106,684.85,684.01,0.57076865]
[1748517318899,1.01492288,684.84,684.02,0.57076865]
[1748517319099,1.01492288,684.83,684.03,0.57076865]
[1748517319397,1.01490062,684.82,684.04,0.57077192]
[1748517319600,0.29198359,684.97,683.85,0.714]
[1748517319801,1.01489858,684.96,683.86,0.57077206]
[1748517319995,1.01489858,684.95,683.87,0.57077206]
[1748517320199,1.01488767,684.94,683.88,0.57079886]
[1748517320399,1.01484816,684.93,683.89,0.57079259]
[1748517320595,1.01484816,684.93,683.86,0.46384169]
[1748517320596,1.01482319,684.92,683.9,0.57080178]
[1748517320899,0.29198359,684.97,683.85,1.17784169]
[1748517321200,0.29198359,684.97,683.85,0.714]
[1748517321595,0.29198359,684.97,683.86,0.57079386]
[1748517321794,0.29198359,684.97,683.85,0.714]
[1748517322000,1.014798,684.96,683.85,0.714]
[1748517322196,0.29198359,684.97,683.85,0.714]
[1748517322702,0.29198359,684.97,683.91,0.46384169]
[1748517322902,1.01477269,684.96,683.92,0.57078079]
[1748517323097,1.0147714,684.95,683.93,0.57078085]
[1748517323296,0.29198359,684.97,683.91,0.46384169]
[1748517323500,0.29198359,684.97,683.89,0.46384169]
[1748517323703,0.29198359,684.97,683.87,0.46384169]
[1748517323898,0.29198359,684.97,683.88,1.03461422]
[1748517324105,0.29198359,684.97,683.88,0.46384169]
[1748517324404,0.29198359,684.97,683.89,0.57077962]
[1748517324602,0.29198359,684.97,683.85,0.714]
[1748517325198,1.01478836,684.96,683.85,0.714]
[1748517325402,0.29198359,684.97,683.85,0.714]
[1748517325597,0.29198359,684.97,683.86,0.57078996]
[1748517325797,0.29198359,684.97,683.85,0.714]
[1748517326196,0.29198359,684.97,683.86,0.57079004]
[1748517326399,0.29198359,684.97,683.87,0.57080568]
[1748517326598,0.29198359,684.97,683.85,0.714]
[1748517326799,1.01479697,684.96,683.85,0.714]
[1748517327003,1.01478772,684.95,683.86,0.57080873]
[1748517327201,1.01481246,684.94,683.85,0.714]
[1748517327401,0.29198359,684.97,683.85,0.714]
[1748517327604,0.29198359,684.97,683.86,0.57081898]
[1748517327799,0.29198359,684.97,683.85,0.714]
[1748517327999,1.01481419,684.96,683.86,0.57082011]
[1748517328204,0.29198359,684.97,683.85,0.714]
[1748517328400,0.29198359,684.97,683.86,0.57083574]
[1748517328705,1.0142848,684.96,683.87,0.57083574]
[1748517329005,1.0142848,684.95,683.88,0.57083625]
[1748517329205,1.0142848,684.94,683.89,0.57083625]
[1748517329398,0.29198359,684.97,683.9,0.57086132]
[1748517329605,0.29198359,684.97,683.85,0.714]
[1748517329606,1.01432911,684.96,683.85,0.714]
[1748517329800,1.01432911,684.95,683.86,0.57087815]
[1748517330104,1.01432911,684.94,683.87,0.57087815]
[1748517330304,1.01432911,684.93,683.88,0.57087815]
[1748517330505,1.01432911,684.92,683.89,0.57087815]
[1748517330705,0.29198359,684.97,683.85,0.714]
[1748517331200,1.01425661,684.96,683.86,0.57088837]
[1748517331406,0.29198359,684.97,683.87,0.57090791]
[1748517331599,1.01429468,684.96,683.88,0.57090791]
[1748517331799,1.01428755,684.95,683.89,0.57090791]
[1748517332006,1.01428755,684.94,683.9,0.57090791]
[1748517332204,1.01428755,684.93,683.91,0.57090791]
[1748517332400,0.29198359,684.97,683.82,0.46384169]
[1748517332601,1.01424161,684.96,683.83,0.57088671]
[1748517332800,1.01424161,684.95,683.84,0.57088671]
[1748517333006,1.01424161,684.94,683.85,0.57088671]
[1748517333206,1.01421046,684.93,683.86,0.57088671]
[1748517333406,0.29198359,684.97,683.83,0.46384169]
[1748517333608,1.01420333,684.96,683.84,0.57086897]
[1748517333803,1.01420333,684.95,683.85,0.57086897]
[1748517334008,1.01420333,684.94,683.86,0.57086897]
[1748517334307,1.01420333,684.93,683.87,0.57086897]
[1748517334501,1.01417877,684.92,683.85,0.569]
[1748517334706,1.01417877,684.91,683.86,0.57084818]
[1748517335007,1.01417089,684.9,683.87,0.57085111]
[1748517335207,1.01417089,684.89,683.88,0.5708314]
[1748517335404,1.01412973,684.88,683.89,0.5708314]
[1748517335606,1.01412973,684.87,683.9,0.5708314]
[1748517335805,1.01412973,684.86,683.91,0.5708314]
[1748517336007,0.29198359,684.97,683.85,1.03284169]
[1748517336217,0.29198359,684.97,683.85,0.569]
[1748517336404,1.01413971,684.96,683.86,0.57083618]
[1748517336609,1.30613182,684.95,683.87,0.5708361]
[1748517336902,1.01413971,684.94,683.88,0.5708361]
[1748517337110,1.01409877,684.93,683.89,0.57081503]
[1748517337409,1.01412237,684.92,683.9,0.57082512]
[1748517337609,1.01412237,684.91,683.91,0.57082512]
[1748517337810,1.01412237,684.9,683.92,0.57082512]
[1748517338106,1.01412237,684.89,683.93,0.57080269]
[1748517338311,1.01410095,684.88,683.94,0.57080505]
[1748517338511,0.29199211,684.95,683.85,1.03284169]
[1748517338707,1.01411648,684.94,683.86,0.57081592]
[1748517338911,1.01411648,684.93,683.87,0.57081592]
[1748517339112,0.29199211,684.95,683.88,0.57079747]
[1748517339306,1.01408677,684.94,683.89,0.57079747]
[1748517339506,1.01408677,684.93,683.9,0.57079747]
[1748517339809,0.29199211,684.95,683.9,0.46384169]
[1748517340012,0.29199211,684.95,683.85,0.569]
[1748517340013,0.29199211,684.95,683.92,0.46384169]
[1748517340212,1.01407862,684.94,683.93,0.57079028]
[1748517340408,1.01407862,684.93,683.94,1.03463197]
[1748517340608,1.01409908,684.92,683.98,0.46384169]
[1748517340808,0.29199211,684.95,683.99,0.46384169]
[1748517341414,1.01410054,684.94,683.87,0.46384169]
[1748517341711,1.01411681,684.93,683.88,0.57080921]
[1748517341912,1.01411681,684.92,683.89,0.57080921]
[1748517342112,1.014087,684.91,683.9,0.57080921]
[1748517342308,1.01408602,684.9,683.91,0.57079067]
[1748517342508,1.01408602,684.89,683.92,0.57079067]
[1748517342710,1.01408844,684.88,683.93,0.57079075]
[1748517342911,1.01408844,684.87,683.94,0.57079075]
[1748517343208,1.01408844,684.86,683.95,0.57079075]
[1748517343414,1.01408844,684.85,683.96,0.57079075]
[1748517343612,1.01408844,684.84,683.97,0.57079075]
[1748517343812,1.01408844,684.83,683.98,0.57078299]
[1748517344115,1.01407362,684.82,683.99,0.57078299]
[1748517344310,1.01407066,684.81,684.0,0.57078195]
[1748517344610,1.01407066,684.8,684.01,0.57078195]
[1748517344808,1.01406924,684.79,684.02,0.57078171]
[1748517345013,1.01406924,684.78,684.03,0.57078171]
[1748517345313,1.01406924,684.77,684.04,0.57078171]
[1748517345511,0.29199211,684.95,683.85,1.03284169]
[1748517345512,1.01406924,684.76,684.05,0.57078171]
[1748517345712,1.01399466,684.75,684.06,0.57074065]
[1748517345908,1.01399543,684.74,684.07,0.5707408]
[1748517346108,1.01399581,684.73,684.08,0.5707408]
[1748517346308,0.29199211,684.95,683.85,1.03284169]
[1748517346509,1.01397306,684.94,683.86,0.57072159]
[1748517346708,0.29199211,684.95,683.87,0.57072159]
[1748517346709,1.01397306,684.93,683.87,0.57072159]
[1748517347008,1.01399224,684.92,683.86,0.46384169]
[1748517347212,1.01399224,684.91,683.87,0.57072053]
[1748517347412,1.01399224,684.9,683.88,0.57072053]
[1748517347611,0.29199211,684.95,683.89,0.57072053]
[1748517347809,1.01391209,684.94,683.86,0.46384169]
[1748517348012,1.01391209,684.93,683.87,0.57069208]
[1748517348308,1.01391209,684.92,683.88,0.5706907]
[1748517348614,1.01391209,684.91,683.89,0.5706907]
[1748517348913,1.01391209,684.91,683.26,0.46382442]
[1748517348914,1.01391209,684.9,683.9,0.5706907]
[1748517349114,1.01391209,684.89,683.91,0.5706907]
[1748517349314,1.01391209,684.88,683.92,0.5706907]
[1748517349509,0.29199211,684.95,683.93,0.57064475]
[1748517349712,1.01383342,684.94,683.94,0.57064512]
[1748517349907,1.01381608,684.93,683.95,0.57064512]
[1748517350109,1.01381811,684.92,683.96,0.57063018]
[1748517350308,1.01381807,684.91,683.93,0.613]
[1748517350513,0.29199211,684.95,683.93,0.613]
[1748517350709,1.01383077,684.94,683.93,0.613]
[1748517350909,1.01383037,684.93,683.94,0.57063165]
[1748517351109,0.29199211,684.95,683.95,0.57063165]
[1748517351308,0.29199211,684.95,683.98,0.46384169]
[1748517351708,0.29199211,684.95,683.99,0.57061526]
[1748517352009,1.01379968,684.94,684.09,0.46384169]
[1748517352210,0.29199211,684.95,684.1,0.57062808]
[1748517352515,0.29199211,684.95,683.93,0.613]
[1748517353811,1.01365795,684.94,683.94,0.57060751]
[1748517354014,1.01365795,684.93,683.95,0.57060751]
[1748517354215,1.01365795,684.92,683.96,0.57060751]
[1748517354416,1.01365795,684.91,683.97,0.57060751]
[1748517354612,1.01365795,684.9,683.98,0.57053976]
[1748517354913,1.01365795,684.89,683.99,0.57053976]
[1748517355114,1.01359589,684.88,683.93,0.613]
[1748517355316,1.01361633,684.87,683.94,0.5705105]
[1748517355512,1.01361633,684.86,683.95,0.5705105]
[1748517355713,1.01361633,684.85,683.96,0.5705105]
[1748517355917,1.01361633,684.84,683.97,0.5705105]
[1748517356218,0.29199211,684.95,683.93,0.613]
[1748517356417,0.29199211,684.95,683.94,0.57054103]
[1748517356418,1.01346106,684.94,683.94,0.57054103]
[1748517356613,0.29199211,684.95,683.95,0.57052238]
[1748517356820,1.0134266,684.94,683.96,0.57052238]
[1748517357016,1.0134266,684.93,683.97,0.57052238]
[1748517357218,0.29199211,684.95,683.98,0.5705298]
[1748517357219,1.0134497,684.92,683.98,0.5705298]
[1748517357520,1.0134497,684.91,683.99,0.5705298]
[1748517357717,1.0134497,684.9,684.0,0.5705298]
[1748517358016,0.29199211,684.95,683.93,0.613]
[1748517358215,1.01343467,684.94,683.94,0.57047373]
[1748517358422,1.01343202,684.93,683.95,0.57047373]
[1748517358621,1.01339709,684.92,683.93,0.613]
[1748517358818,1.0133971,684.91,683.94,0.57045692]
[1748517359019,1.0133971,684.9,683.95,0.57045692]
[1748517359228,1.0133971,684.89,683.96,0.57045692]
[1748517359418,1.0133971,684.88,683.97,0.57045692]
[1748517359722,1.0133971,684.87,683.98,0.57045692]
[1748517359923,1.01335558,684.86,683.99,0.57045227]
[1748517360120,1.01335749,684.85,684.0,0.57045227]
[1748517360421,1.01335749,684.84,684.01,0.57045227]
[1748517360724,1.01335996,684.83,684.02,0.57045158]
[1748517360924,1.01335996,684.82,684.03,0.57045158]
[1748517361125,0.29199211,684.95,683.93,0.613]
[1748517361420,1.0139725,684.94,683.94,0.570451]
[1748517361619,1.0139725,684.93,683.95,0.570451]
[1748517361819,1.01396311,684.92,683.96,0.57044914]
[1748517362024,1.01396311,684.91,683.93,0.613]
[1748517362225,1.01396311,684.9,683.94,0.57044829]
[1748517362423,1.01396732,684.89,683.95,0.57044811]
[1748517362621,1.01396732,684.89,683.93,0.613]
[1748517362622,0.29199211,684.95,683.96,0.57044811]
[1748517362826,1.01396868,684.94,683.97,0.57044811]
[1748517363026,1.01396868,684.93,683.98,0.57044811]
[1748517363328,1.01396868,684.92,683.99,0.57044811]
[1748517363529,1.01396836,684.91,684.0,0.57044786]
[1748517363729,1.01399205,684.9,684.01,0.57046256]
[1748517363927,1.01396887,684.89,684.02,0.57044964]
[1748517364122,1.01397074,684.88,683.93,0.613]
[1748517364328,1.01396942,684.87,683.94,0.57045005]
[1748517364630,1.01396942,684.86,683.95,0.57045005]
[1748517364928,1.01396942,684.85,683.96,0.57045005]
[1748517365123,0.29199211,684.95,683.97,0.56995478]
[1748517365425,1.01397671,684.94,683.98,0.56995478]
[1748517365627,1.0140021,684.93,683.99,0.56997168]
[1748517365825,1.0140021,684.92,684.0,0.56997168]
[1748517366028,1.0140021,684.92,683.95,0.46384169]
[1748517366029,1.0140021,684.91,684.01,0.56999287]
[1748517366224,1.0140021,684.9,684.02,0.56999287]
[1748517366427,1.0140021,684.9,683.93,1.07684169]
[1748517366428,1.0140021,684.89,684.03,0.56999287]
[1748517366622,1.01406258,684.88,684.04,0.57000994]
[1748517366926,1.01406258,684.88,683.93,1.07684169]
[1748517366927,1.01406258,684.87,683.93,0.613]
[1748517367130,1.01406258,684.86,683.94,0.57004566]
[1748517367327,1.01406258,684.85,683.95,0.57004566]
[1748517367525,1.01412038,684.84,683.96,0.57004566]
[1748517367730,1.01412038,684.83,683.97,0.57004566]
[1748517367926,1.01412038,684.82,683.98,0.57004566]
[1748517368126,1.01412038,684.81,683.99,0.57004566]
[1748517368430,1.01412038,684.8,684.0,0.57004566]
[1748517368726,1.01498071,684.79,684.01,0.57004566]
[1748517368926,1.01498071,684.78,684.02,0.57004566]
[1748517369131,1.01521923,684.77,684.03,0.56940205]
[1748517369327,1.01514348,684.76,684.04,0.56940205]
[1748517369527,1.01509355,684.75,684.05,0.56944777]
[1748517369734,1.01509355,684.74,684.06,0.56944777]
[1748517369930,1.01509355,684.73,684.07,0.56944777]
[1748517370128,1.01509355,684.72,684.08,0.56944777]
[1748517370331,1.01509355,684.71,684.09,0.56944777]
[1748517370628,1.01593962,684.7,684.1,0.56951287]
[1748517370830,0.29199211,684.95,683.93,0.613]
[1748517371030,1.01609389,684.94,683.94,0.56959318]
[1748517371327,0.29200064,684.93,683.95,0.56959316]
[1748517371532,1.01609385,684.92,683.96,0.56959316]
[1748517371730,1.30810301,684.91,683.97,0.56959316]
[1748517371927,1.30826118,684.9,683.98,0.56968037]
[1748517372233,1.30826544,684.89,683.99,0.56968037]
[1748517372428,1.30826544,684.89,683.93,0.613]
[1748517372429,1.30826971,684.88,684.0,0.56968306]
[1748517372629,1.30826971,684.88,683.93,0.613]
[1748517372630,1.30827397,684.87,684.01,0.56979863]
[1748517372828,1.01624775,684.86,684.02,0.56979863]
[1748517373025,1.01624775,684.85,684.03,0.56979863]
[1748517373228,1.0163546,684.84,684.04,0.56973753]
[1748517373426,1.0163546,684.83,684.05,0.56973753]
[1748517373632,1.0163546,684.82,684.06,0.56973753]
[1748517373827,1.0163546,684.81,684.07,0.56973753]
[1748517374027,1.0163546,684.8,684.08,0.56973753]
[1748517374327,1.01648573,684.79,684.09,0.56979855]
[1748517374528,1.01648573,684.78,684.1,0.56979634]
[1748517374738,1.01649245,684.77,684.11,0.56979624]
[1748517374932,0.29202622,684.87,684.12,0.56979624]
[1748517374933,1.01649245,684.76,684.12,0.56979624]
[1748517375130,1.01644718,684.75,684.13,0.56977101]
[1748517375329,1.01644718,684.74,684.14,0.56977101]
[1748517375527,1.01644718,684.73,684.15,0.56977101]
[1748517375732,1.01661754,684.72,684.16,0.56977101]
[1748517376028,1.01661754,684.71,684.17,0.56977101]
[1748517376232,1.01661644,684.7,684.18,0.56977101]
[1748517376433,1.01661644,684.69,684.19,0.5698664]
[1748517376629,1.01663595,684.68,684.2,0.5698664]
[1748517376833,1.01663595,684.67,684.21,0.5698664]
[1748517377033,0.29202622,684.87,684.22,0.5698664]
[1748517377231,0.29202622,684.87,684.23,0.56994466]
[1748517377430,1.01676304,684.86,684.24,0.56994655]
[1748517377629,1.01676304,684.85,684.25,0.56994655]
[1748517377833,1.01676304,684.84,684.26,0.56994655]
[1748517378031,1.01676304,684.83,684.27,0.56994655]
[1748517378329,1.01676304,684.83,683.93,0.613]
[1748517378330,1.01672014,684.82,683.93,0.613]
[1748517378529,1.01672107,684.81,683.94,0.56992162]
[1748517378729,1.01672107,684.81,683.93,0.613]
[1748517378730,1.01672107,684.8,683.95,0.56992162]
[1748517378931,1.01672107,684.79,683.96,0.56992162]
[1748517379137,1.01672107,684.78,683.97,0.56992162]
[1748517379336,1.01672107,684.77,683.98,0.56992162]
[1748517379530,1.01672107,684.76,683.99,0.56992162]
[1748517379735,1.01672107,684.75,684.0,0.56998847]
[1748517379931,1.01672107,684.74,684.01,0.56998847]
[1748517380130,1.01695748,684.73,684.02,0.56998847]
[1748517380332,0.29202622,684.87,683.93,0.613]
[1748517380531,1.01695358,684.86,683.94,0.57008254]
[1748517380734,1.30898833,684.85,683.95,0.57008254]
[1748517380935,1.01695358,684.84,683.96,0.57008254]
[1748517381135,1.01695358,684.83,683.97,0.57008254]
[1748517381332,0.29203475,684.85,683.93,0.613]
[1748517381533,1.01688279,684.84,683.94,0.57004451]
[1748517381735,0.29203475,684.85,683.95,0.57004453]
[1748517381938,1.01688273,684.84,683.96,0.57004453]
[1748517382137,1.0168985,684.83,683.97,0.57004453]
[1748517382336,1.0168985,684.82,683.98,0.57004453]
[1748517382635,0.29203475,684.85,683.99,0.5700135]
[1748517382636,1.01682823,684.81,683.99,0.5700135]
[1748517382838,1.01682823,684.8,684.0,0.5700135]
[1748517383136,1.01683743,684.79,684.01,0.57000889]
[1748517383340,1.01683743,684.78,684.02,0.57000889]
[1748517383541,0.25429116,684.84,684.03,0.57000889]
[1748517383542,1.0168374,684.77,684.03,0.57000889]
[1748517383841,1.01683483,684.76,684.04,0.57000943]
[1748517384040,0.25429116,684.84,684.05,0.57000943]
[1748517384041,1.01683483,684.75,684.05,0.57000943]
[1748517384241,1.01683483,684.74,684.06,0.57000943]
[1748517384442,1.01675248,684.73,684.07,0.57000943]
[1748517384637,1.01675248,684.72,684.08,0.57000943]
[1748517384838,1.01675324,684.71,684.09,0.57000943]
[1748517385037,1.01675324,684.7,684.1,0.57000943]
[1748517385237,1.01675276,684.69,684.11,0.56996237]
[1748517385542,0.25429116,684.84,684.02,0.691]
[1748517385543,1.01675276,684.68,684.12,0.56996109]
[1748517385842,1.01673354,684.67,684.13,0.56996109]
[1748517386037,0.25429116,684.84,684.02,0.691]
[1748517386337,1.01673338,684.83,684.03,0.56994512]
[1748517386540,0.25429116,684.84,684.02,0.691]
[1748517386842,1.01671065,684.83,684.03,0.56994461]
[1748517387042,1.01671065,684.82,684.04,0.56994461]
[1748517387238,1.01671065,684.81,684.05,0.56994461]
[1748517387438,1.01671065,684.81,684.02,0.691]
[1748517387439,1.01671065,684.8,684.06,0.56994461]
[1748517387640,1.01671065,684.79,684.07,0.56994461]
[1748517387838,1.0167185,684.78,684.08,0.56992151]
[1748517388038,1.0167185,684.77,684.09,0.56992151]
[1748517388241,1.0167185,684.76,684.1,0.56992151]
[1748517388441,0.25429116,684.84,684.02,0.691]
[1748517388637,0.25429116,684.84,684.03,0.56991328]
[1748517388842,1.01670037,684.83,684.04,0.56991328]
[1748517389039,1.01670036,684.82,684.05,0.56991328]
[1748517389239,1.01674295,684.81,684.06,0.56993769]
[1748517389444,1.01674295,684.8,684.07,0.56993769]
[1748517389742,1.01674295,684.79,684.08,0.56993769]
[1748517389942,1.01674295,684.78,684.09,0.56993769]
[1748517390246,1.01674295,684.77,684.1,0.56993769]
[1748517390444,1.016725,684.76,684.11,0.56993006]
[1748517390639,0.25429116,684.84,684.02,0.691]
[1748517390640,1.01672971,684.75,684.02,0.691]
[1748517390840,0.25429116,684.84,684.02,0.691]
[1748517391037,1.01673236,684.83,684.03,0.5699327]
[1748517391242,1.01673236,684.82,684.04,0.5699327]
[1748517391541,1.01673236,684.81,684.05,0.5699327]
[1748517391744,1.01673236,684.8,684.06,0.5699327]
[1748517392044,1.01673236,684.79,684.07,0.5699327]
[1748517392244,1.01673236,684.78,684.08,0.5699327]
[1748517392446,1.01673236,684.77,684.02,0.691]
[1748517392638,1.01673236,684.76,684.02,0.691]
[1748517392841,1.0167135,684.75,684.03,0.56992372]
[1748517393039,1.0167135,684.74,684.04,0.56992372]
[1748517393240,1.01670282,684.73,684.05,0.56991927]
[1748517393444,1.01670282,684.72,684.06,0.56991927]
[1748517393643,0.25429116,684.84,684.07,0.56991927]
[1748517393845,1.01669628,684.83,684.08,0.56991927]
[1748517394146,1.01669628,684.82,684.09,0.56991927]
[1748517394341,0.25429116,684.84,684.02,0.691]
[1748517394648,1.0166974,684.83,684.03,0.57041518]
[1748517394841,1.0166974,684.82,684.04,0.57041518]
[1748517395145,0.25429116,684.84,684.02,0.691]
[1748517395146,1.0166974,684.81,684.05,0.57041518]
[1748517395346,1.0166974,684.81,684.02,0.691]
[1748517395347,1.0166974,684.8,684.06,0.57041518]
[1748517395542,1.01652849,684.79,684.07,0.57041025]
[1748517395747,1.01652849,684.78,684.08,0.57041025]
[1748517395947,0.29203475,684.85,684.09,0.57038015]
[1748517395948,1.01652849,684.77,684.09,0.57038015]
[1748517396147,1.01661507,684.76,684.1,0.57037201]
[1748517396346,1.01661507,684.75,684.11,0.57037202]
[1748517396543,1.01661489,684.74,684.12,0.57037177]
[1748517396744,1.01661489,684.73,684.13,0.57037177]
[1748517396948,1.01661489,684.72,684.14,0.57037177]
[1748517397148,1.01664668,684.71,684.15,0.57037177]
[1748517397350,1.01664625,684.7,684.16,0.57037177]
[1748517397547,0.29203475,684.85,684.17,0.57037563]
[1748517397847,0.29203475,684.85,684.02,0.691]
[1748517398045,1.01666288,684.84,684.03,0.57038379]
[1748517398249,1.01666288,684.83,684.04,0.57038379]
[1748517398449,1.01666288,684.83,684.02,0.691]
[1748517398450,0.29203475,684.85,684.02,0.691]
[1748517398651,1.01670408,684.84,684.03,0.57037899]
[1748517398851,1.01670408,684.83,684.04,0.57037899]
[1748517399151,1.01742094,684.82,684.05,0.57037899]
[1748517399348,1.01742319,684.81,684.06,0.5703759]
[1748517399647,1.01742319,684.81,684.02,0.691]
[1748517399648,0.29203475,684.85,684.07,0.5703701]
[1748517399847,1.01743271,684.84,684.08,0.5703701]
[1748517400046,1.01743271,684.83,684.09,0.5703701]
[1748517400251,1.01743271,684.82,684.13,0.46384169]
[1748517400451,1.01743271,684.81,684.14,0.5703701]
[1748517400647,1.01743271,684.8,684.15,0.5703701]
[1748517400850,0.29203475,684.85,684.13,0.46384169]
[1748517400851,1.01742132,684.79,684.16,0.57035831]
[1748517401052,1.01748621,684.78,684.17,0.57035913]
[1748517401248,1.01748621,684.77,684.18,0.57035934]
[1748517401451,0.29203475,684.85,684.13,0.46384169]
[1748517401752,1.0174861,684.84,684.14,0.57035934]
[1748517401953,1.0174861,684.83,684.15,0.57035934]
[1748517402252,1.0174861,684.82,684.16,0.57035934]
[1748517402553,1.0174861,684.81,684.17,0.57035934]
[1748517402753,1.01750152,684.8,684.18,0.57035934]
[1748517403051,0.29203475,684.85,684.19,0.57035934]
[1748517403052,1.01749963,684.79,684.19,0.57035934]
[1748517403247,1.01749963,684.78,684.2,0.57035934]
[1748517403452,1.01749963,684.77,684.21,0.57035934]
[1748517403653,1.01749612,684.76,684.22,0.56945861]
[1748517403854,1.01750245,684.75,684.23,0.56945861]
[1748517404055,1.01750245,684.74,684.24,0.56945861]
[1748517404349,1.01750245,684.73,684.25,0.56945861]
[1748517404649,1.01750245,684.72,684.26,0.56945861]
[1748517404853,1.01750245,684.71,684.27,0.56945861]
[1748517405054,1.01828687,684.7,684.28,0.56948595]
[1748517405254,1.01828689,684.69,684.29,0.56948595]
[1748517405551,1.01828689,684.68,684.3,0.56948707]
[1748517405855,1.01828689,684.67,684.31,0.56948707]
[1748517406054,1.01828689,684.66,684.32,0.56948707]
[1748517406355,1.01829483,684.65,684.33,0.56949486]
[1748517406554,1.01830921,684.64,684.34,0.56949486]
[1748517406754,1.01830619,684.63,684.35,0.56949486]
[1748517406950,0.29203475,684.85,684.35,0.639]
[1748517407150,1.01831708,684.84,684.36,0.56950671]
[1748517407354,1.01831708,684.83,684.37,0.56950671]
[1748517407550,1.01831708,684.82,684.38,0.56950671]
[1748517407751,1.01831708,684.81,684.39,0.56950671]
[1748517407951,1.01831708,684.8,684.4,0.56950671]
[1748517408153,1.01831708,684.79,684.41,0.56951795]
[1748517408356,0.29203475,684.85,684.42,0.56951791]
[1748517408553,1.01872455,684.84,684.43,0.56951791]
[1748517408758,1.01872454,684.83,684.44,0.56951633]
[1748517408957,1.01872207,684.82,684.45,0.56951592]
[1748517409158,1.01872207,684.81,684.46,0.56951592]
[1748517409458,1.01872207,684.8,684.47,0.56951592]
[1748517409656,1.01872207,684.79,684.48,0.56951592]
[1748517409955,1.01872207,684.78,684.49,0.56951592]
[1748517410259,1.01872207,684.77,684.5,0.56952507]
[1748517410458,1.01872207,684.76,684.51,0.56952507]
[1748517410659,1.01865128,684.75,684.52,0.56952507]
[1748517410855,1.01865128,684.74,684.53,0.56952507]
[1748517411057,1.01865128,684.73,684.54,0.56952507]
[1748517411356,1.01852684,684.72,684.55,0.5695204]
[1748517411558,0.29203475,684.85,684.35,0.639]
[1748517411754,1.01850435,684.84,684.36,0.56952063]
[1748517411954,1.01850435,684.83,684.37,0.56952063]
[1748517412260,1.01852089,684.82,684.38,0.56952318]
[1748517412555,1.01852089,684.81,684.39,0.56952318]
[1748517412859,1.01852089,684.8,684.4,0.56952318]
[1748517413058,1.0185337,684.79,684.41,0.56952318]
[1748517413259,1.01853431,684.78,684.42,0.56952318]
[1748517413458,1.01853431,684.77,684.43,0.56952318]
[1748517413658,1.01853431,684.76,684.44,0.56952318]
[1748517413854,1.01853431,684.75,684.45,0.56952318]
[1748517414053,1.01853431,684.75,684.35,0.639]
[1748517414054,1.01853431,684.74,684.46,0.56952318]
[1748517414254,1.01852228,684.73,684.47,0.56952318]
[1748517414454,1.01852228,684.72,684.48,0.56952318]
[1748517414652,1.01852228,684.71,684.49,0.56952318]
[1748517414857,1.01852228,684.7,684.5,0.56952318]
[1748517415057,1.01852228,684.69,684.51,0.56952318]
[1748517415254,1.01852228,684.68,684.52,0.56952318]
[1748517415459,1.01852228,684.67,684.53,0.56952569]
[1748517415757,0.29203475,684.85,684.54,0.5695252]
[1748517415958,1.01851377,684.84,684.55,0.56952957]
[1748517416152,1.01851377,684.84,684.35,0.639]
[1748517416153,1.01851377,684.83,684.56,0.56952957]
[1748517416357,1.01851377,684.82,684.57,0.56952957]
[1748517416554,1.01851377,684.81,684.58,0.56952957]
[1748517416856,1.01851377,684.8,684.59,0.56952957]
[1748517417053,1.01857186,684.79,684.6,0.56952711]
[1748517417356,1.01857186,684.78,684.61,0.56952711]
[1748517417557,1.01857186,684.77,684.62,0.56952711]
[1748517417754,1.01857186,684.76,684.63,0.56952711]
[1748517418055,0.29203475,684.85,684.35,0.639]
[1748517418056,1.01857186,684.75,684.35,0.639]
[1748517418259,1.01857186,684.74,684.36,0.56952981]
[1748517418456,1.01857186,684.73,684.37,0.56952973]
[1748517418759,0.29203475,684.85,684.35,0.639]
[1748517419255,1.01859938,684.84,684.36,0.56952631]
[1748517419459,1.01859938,684.83,684.37,0.56952631]
[1748517419762,1.01859938,684.82,684.38,0.56952631]
[1748517419954,1.01860409,684.81,684.39,0.56953111]
[1748517420158,1.01860409,684.8,684.4,0.56953111]
[1748517420359,1.01860409,684.79,684.41,0.56953111]
[1748517420559,1.01862673,684.78,684.42,0.56952265]
[1748517420760,1.01863211,684.77,684.43,0.56952265]
[1748517421056,0.29203475,684.85,684.35,0.639]
[1748517421261,1.01862437,684.84,684.36,0.5695162]